lending/lending_fUSD_20260310
["ID","MTS","AMOUNT","RATE_DAILY","PERIOD"]
[408145978,1773173447318,-500.0,0.00019899,2]
[408145979,1773173447328,-500.0,0.00019899,2]
[408145980,1773173447337,-500.0,0.00019899,2]
[408145981,1773173447347,-500.0,0.00019899,2]
[408145982,1773173447357,-243.10314305,0.00019899,2]
[408145983,1773173447366,-500.0,0.00019899,2]
[408145984,1773173447375,-500.0,0.00019899,2]
[408145985,1773173447385,-500.0,0.00019899,2]
[408145986,1773173447395,-402.25682641,0.000199,2]
[408145987,1773173447404,-1000.0,0.000199,2]
[408145988,1773173447414,-930.3724,0.000199,2]
[408145989,1773173447424,-500.0,0.000199,2]
[408145990,1773173447433,-500.0,0.000199,2]
[408145991,1773173447443,-500.0,0.000199,2]
[408145992,1773173447453,-500.0,0.000199,2]
[408145993,1773173447463,-500.0,0.000199,2]
[408145994,1773173447472,-168.81944825,0.000199,2]
[408145995,1773173447483,-2873.19905948,0.000199,2]
[408145996,1773173447492,-757.9640289,0.000199,2]
[408145997,1773173447501,-25000.0,0.000199,3]
[408145998,1773173447511,-500.43,0.000199,7]
[408145999,1773173447520,-675.20290642,0.000199,2]
[408146000,1773173447530,-250.0,0.000199,2]
[408146001,1773173447540,-172.91703981,0.000199,3]
[408146002,1773173447549,-161.2390476,0.000199,2]
[408146003,1773173447558,-314.49272081,0.000199,2]
[408146004,1773173447568,-205.85838218,0.000199,2]
[408146005,1773173447577,-5943.01687584,0.000199,2]
[408146006,1773173447587,-842.73671246,0.000199,2]
[408146007,1773173447596,-388.66679332,0.000199,2]
[408146008,1773173447605,-29988.87,0.00019902,2]
[408146009,1773173447614,-250.0,0.00019911,2]
[408146010,1773173447623,-250.0,0.0001995,2]
[408146011,1773173447633,-250.0,0.00019964,2]
[408146012,1773173447643,-150.0,0.00019973,2]
[408146013,1773173447654,-500.0,0.00019973,2]
[408146014,1773173447664,-500.0,0.00019973,2]
[408146015,1773173447673,-500.0,0.00019973,2]
[408146016,1773173447683,-500.0,0.00019973,2]
[408146017,1773173447693,-500.0,0.00019973,2]
[408146018,1773173447702,-162.48933507,0.00019973,2]
[408146019,1773173447711,-500.30661953,0.00019973,2]
[408146020,1773173447721,-500.0,0.00019973,2]
[408146021,1773173447732,-500.0,0.00019973,2]
[408146022,1773173447742,-500.0,0.00019973,2]
[408146023,1773173447752,-621.69234867,0.00019973,2]
[408146024,1773173447761,-309.41665429,0.00019973,2]
[408146025,1773173447771,-161.52562053,0.00019973,2]
[408146026,1773173447780,-336.48617471,0.00019973,2]
[408146027,1773173447789,-525.62729725,0.00019973,2]
[408146028,1773173447798,-215.0,0.00019975,2]
[408146029,1773173447807,-118922.92157781,0.0001998,2]
[408146030,1773173447817,-216.911124,0.0001998,2]
[408146031,1773173447826,-652.32837163,0.00019989,2]
[408146032,1773173447835,-151.0,0.00019997,2]
[408146033,1773173447844,-151.0,0.00019997,2]
[408146034,1773173447854,-576.89,0.00019998,2]
[408146035,1773173447863,-500.0,0.00019998,2]
[408146036,1773173447873,-300.0,0.00019999,2]
[408146037,1773173447882,-300.0,0.00019999,2]
[408146038,1773173447892,-666.0,0.00019999,2]
[408146039,1773173447901,-300.0,0.00019999,2]
[408146040,1773173447911,-666.0,0.00019999,2]
[408146041,1773173447920,-300.0,0.00019999,2]
[408146042,1773173447929,-1222.87946612,0.00019999,5]
[408146043,1773173447938,-1222.87946613,0.00019999,5]
[408146044,1773173448053,-1222.87946612,0.00019999,5]
[408146045,1773173448063,-1222.87946612,0.00019999,5]
[408146046,1773173448072,-500.0,0.00019999,2]
[408146047,1773173448082,-500.0,0.00019999,2]
[408146048,1773173448091,-500.0,0.00019999,2]
[408146049,1773173448099,-500.0,0.00019999,2]
[408146050,1773173448108,-5686.0125752,0.00019999,2]
[408146051,1773173448117,-500.0,0.00019999,2]
[408146052,1773173448126,-500.0,0.00019999,2]
[408146053,1773173448135,-500.0,0.00019999,2]
[408146054,1773173448144,-414.91346908,0.00019999,2]
[408146055,1773173448153,-3571.0887576,0.00019999,2]
[408146056,1773173448162,-164.431,0.00019999,2]
[408146057,1773173448171,-673.09874876,0.00019999,5]
[408146058,1773173448179,-606.83,0.00019999,2]
[408146059,1773173448188,-606.83,0.00019999,2]
[408146060,1773173448197,-606.83,0.00019999,2]
[408146061,1773173448206,-606.83,0.00019999,2]
[408146062,1773173448216,-606.83,0.00019999,2]
[408146063,1773173448225,-606.83,0.00019999,2]
[408146064,1773173448235,-606.83,0.00019999,2]
[408146065,1773173448244,-606.83,0.00019999,2]
[408146066,1773173448254,-606.83,0.00019999,2]
[408146067,1773173448264,-606.83,0.00019999,2]
[408146068,1773173448274,-606.83,0.00019999,2]
[408146069,1773173448284,-606.83,0.00019999,2]
[408146070,1773173448293,-606.83,0.00019999,2]
[408146071,1773173448302,-606.83,0.00019999,2]
[408146072,1773173448311,-606.83,0.00019999,2]
[408146073,1773173448321,-606.83,0.00019999,2]
[408146074,1773173448330,-606.83,0.00019999,2]
[408146075,1773173448339,-606.83,0.00019999,2]
[408146076,1773173448348,-606.83,0.00019999,2]
[408146077,1773173448357,-606.83,0.00019999,2]
[408146078,1773173448366,-606.83,0.00019999,2]
[408146079,1773173448375,-606.83,0.00019999,2]
[408146080,1773173448384,-606.83,0.00019999,2]
[408146081,1773173448393,-606.89,0.00019999,2]
[408146082,1773173448403,-33196.02130339,0.00019999,2]
[408146083,1773173448412,-576.89,0.00019999,2]
[408146084,1773173448422,-576.89,0.00019999,2]
[408146085,1773173448431,-576.89,0.00019999,2]
[408146086,1773173448440,-576.89,0.00019999,2]
[408146087,1773173448449,-576.89,0.00019999,2]
[408146088,1773173448458,-576.89,0.00019999,2]
[408146089,1773173448467,-576.89,0.00019999,2]
[408146090,1773173448477,-576.89,0.00019999,2]
[408146091,1773173448486,-576.89,0.00019999,2]
[408146092,1773173448495,-576.89,0.00019999,2]
[408146093,1773173448504,-576.89,0.00019999,2]
[408146094,1773173448514,-576.92799988,0.00019999,2]
[408146095,1773173448522,-257.61241438,0.00019999,2]
[408146096,1773173448532,-500.0,0.00019999,2]
[408146097,1773173448541,-561.12798041,0.00019999,2]
[408146098,1773173448550,-21577.1891384,0.00019999,2]
[408146099,1773173448560,-500.0,0.00019999,2]
[408146100,1773173448569,-500.0,0.00019999,2]
[408146101,1773173448578,-500.0,0.00019999,2]
[408146102,1773173448587,-500.0,0.00019999,2]
[408146103,1773173448596,-530.0627847,0.00019999,2]
[408146104,1773173448605,-368087.8907637,0.00019999,2]
[408146105,1773173448615,-500.0,0.00019999,2]
[408146106,1773173448624,-500.0,0.00019999,2]
[408146107,1773173448634,-504.92020981,0.00019999,2]
[408146108,1773173448645,-500.0,0.00019999,2]
[408146109,1773173448655,-500.0,0.00019999,2]
[408146110,1773173448664,-500.0,0.00019999,2]
[408146111,1773173448673,-500.0,0.00019999,2]
[408146112,1773173448685,-396.38337772,0.00019999,2]
[408146113,1773173448694,-500.0,0.00019999,2]
[408146114,1773173448703,-500.0,0.00019999,2]
[408146115,1773173448714,-500.0,0.00019999,2]
[408146116,1773173448723,-500.0,0.00019999,2]
[408146117,1773173448733,-500.0,0.00019999,2]
[408146118,1773173448742,-500.0,0.00019999,2]
[408146119,1773173448752,-4626.2133365,0.00019999,2]
[408146120,1773173448761,-96475.1348262,0.00019999,2]
[408146121,1773173448770,-3967.0,0.0002,2]
[408146122,1773173448779,-212918.95233761,0.0002,2]
[408146123,1773173448788,-164.68876927,0.0002,2]
[408146124,1773173448797,-626237.64,0.0002,2]
[408146125,1773173448812,-3820482.66557254,0.0002,2]
[408146126,1773173449564,-950.58082953,0.0002,2]
[408146127,1773173449576,-43376.65906973,0.0002,2]
[408146128,1773173449717,-414.0,0.00019137,2]
[408146129,1773173449727,-3000.0,0.00019178,2]
[408146130,1773173449736,-3000.0,0.00019178,2]
[408146131,1773173449745,-3000.0,0.00019178,2]
[408146132,1773173449755,-3000.0,0.00019178,2]
[408146133,1773173449764,-3000.0,0.00019178,2]
[408146134,1773173449773,-3000.0,0.00019178,2]
[408146135,1773173449782,-3000.0,0.00019178,2]
[408146136,1773173449791,-3000.0,0.00019178,2]
[408146137,1773173449801,-9898.56304388,0.000199,3]
[408146138,1773173449811,-3000.0,0.00019998,2]
[408146139,1773173449821,-3594555.58920326,0.0002,2]
[408146140,1773173450337,-1232.11262911,0.000146,2]
[408146141,1773173450351,-1141.75539225,0.000146,2]
[408146142,1773173450591,2027.56,0.0001373,2]
[408146143,1773173451701,5532.0,0.000136,5]
[408146144,1773173536079,985.61,9.158e-05,2]
[408146145,1773173537148,748.24429007,9.158e-05,2]
[408146146,1773173537178,664.35584699,9.158e-05,2]
[408146147,1773173540364,500.0,9.158e-05,2]
[408146148,1773173540568,215.75,0.00014158,2]
[408146149,1773173541352,500.0,9.158e-05,2]
[408146150,1773173541847,500.0,9.158e-05,2]
[408146151,1773173546840,500.0,9.158e-05,2]
[408146152,1773173547241,500.0,9.158e-05,2]
[408146153,1773173568570,647.25,0.00014158,2]
[408146154,1773173765193,150.0,0.00013472,2]
[408146155,1773173836634,500.0,9.158e-05,2]
[408146156,1773173845109,500.0,9.158e-05,2]
[408146157,1773173846108,500.0,9.158e-05,2]
[408146158,1773173848422,500.0,9.158e-05,2]
[408146159,1773173850621,500.0,9.158e-05,2]
[408146160,1773173851744,500.0,9.158e-05,2]
[408146161,1773173912896,189.5192773,0.00014087,2]
[408146162,1773174009088,217.49,0.00013911,2]
[408146163,1773174036059,979.94,0.00013472,2]
[408146164,1773174050425,166.66,0.00013876,2]
[408146165,1773174089730,13164.82,0.00013472,2]
[408146167,1773174205854,196.0,0.000141,3]
[408146168,1773174241434,300.0,0.00014157,2]
[408146169,1773174243470,300.0,0.00014157,2]
[408146170,1773174270487,189.51927728,0.00014058,2]
[408146171,1773174301242,1200.0,0.00014157,2]
[408146172,1773174301349,300.0,0.00014157,2]
[408146173,1773174301416,300.0,0.00014157,2]
[408146174,1773174329520,5533.0,0.000141,5]
[408146175,1773174361585,300.0,0.00014157,2]
[408146179,1773174601111,1200.0,0.00014157,2]
[408146180,1773174601396,286.0,0.00014157,2]
[408146181,1773174620358,189.51927728,0.00014058,2]
[408146185,1773174631597,-4553.6464761,0.00014158,2]
[408146186,1773174631608,-378.37521004,0.00014158,2]
[408146187,1773174631651,-67.97831386,0.00014158,2]
[408146188,1773174631662,-250.0,0.00014158,2]
[408146189,1773174631672,-229.79476782,0.00014158,2]
[408146190,1773174631711,-370.20523218,0.00014158,2]
[408146191,1773174631721,-600.0,0.00014158,2]
[408146192,1773174631731,-571.81560912,0.00014158,2]
[408146193,1773174631741,-3524.67735945,0.00014158,2]
[408146194,1773174631751,-285.27451653,0.00014158,2]
[408146195,1773174631761,-150.0,0.0001431,2]
[408146196,1773174631771,-166.66,0.00014334,2]
[408146197,1773174631781,-3535.04,0.00014336,2]
[408146198,1773174631791,-3240.0,0.00014359,2]
[408146199,1773174631800,-500.0,0.00014436,2]
[408146200,1773174631810,-150.0,0.00014503,2]
[408146201,1773174631819,-6464.59,0.00014504,2]
[408146202,1773174631828,-150.99,0.00014504,2]
[408146203,1773174631838,-3198.48,0.00014504,2]
[408146204,1773174631848,-7671.75,0.00014504,2]
[408146205,1773174631858,-999.99,0.00014504,2]
[408146206,1773174631868,-500.0,0.00014597,2]
[408146207,1773174631878,-516.64002131,0.00014597,2]
[408146208,1773174631889,-500.0,0.00014597,2]
[408146209,1773174631900,-606.83,0.00014597,2]
[408146210,1773174631910,-606.83,0.00014597,2]
[408146211,1773174631921,-606.83,0.00014597,2]
[408146212,1773174631932,-606.83,0.00014597,2]
[408146213,1773174631941,-606.83,0.00014623,2]
[408146214,1773174631953,-606.83,0.00014697,2]
[408146215,1773174631963,-500.0,0.00014698,2]
[408146216,1773174631972,-500.0,0.00014698,2]
[408146217,1773174631986,-500.0,0.00014698,2]
[408146218,1773174631996,-606.83,0.00014698,2]
[408146219,1773174632005,-606.83,0.00014698,2]
[408146220,1773174632016,-606.83,0.00014698,2]
[408146221,1773174632026,-606.83,0.00014698,2]
[408146222,1773174632036,-606.83,0.00014698,2]
[408146223,1773174632046,-606.83,0.00014698,2]
[408146224,1773174632057,-606.83,0.00014698,2]
[408146225,1773174632067,-606.83,0.00014698,2]
[408146226,1773174632077,-606.83,0.00014698,2]
[408146227,1773174632087,-606.83,0.00014698,2]
[408146228,1773174632097,-598.85274621,0.00014771,2]
[408146229,1773174632107,-166.66,0.00014792,2]
[408146230,1773174632116,-306.69911142,0.0001498,2]
[408146231,1773174632125,-307.59280888,0.0001498,2]
[408146232,1773174632135,-500.0,0.0001498,2]
[408146233,1773174632146,-250.0,0.00015,2]
[408146234,1773174632157,-1123.12,0.00015,2]
[408146235,1773174632166,-500.0,0.00015,30]
[408146236,1773174632176,-500.0,0.00015,30]
[408146237,1773174632185,-228.06401281,0.00015,30]
[408146238,1773174632196,-500.0,0.00015,30]
[408146241,1773174632205,-500.0,0.00015,30]
[408146243,1773174632214,-500.0,0.00015,30]
[408146245,1773174632224,-500.0,0.00015,30]
[408146247,1773174632233,-500.2636592,0.00015,30]
[408146250,1773174632243,-500.0,0.00015,30]
[408146252,1773174632253,-500.0,0.00015,30]
[408146254,1773174632262,-500.0,0.00015,30]
[408146256,1773174632273,-500.0,0.00015,30]
[408146258,1773174632283,-500.0,0.00015,30]
[408146260,1773174632292,-500.0,0.00015,30]
[408146262,1773174632302,-500.0,0.00015,30]
[408146263,1773174632311,-500.0,0.00015,30]
[408146264,1773174632320,-524.69213609,0.00015,30]
[408146265,1773174632330,-500.0,0.00015,30]
[408146266,1773174632340,-500.0,0.00015,30]
[408146267,1773174632350,-500.0,0.00015,30]
[408146268,1773174632360,-500.0,0.00015,30]
[408146269,1773174632370,-270.82600181,0.00015,30]
[408146270,1773174632381,-500.0,0.00015,30]
[408146271,1773174632391,-500.0,0.00015,30]
[408146272,1773174632403,-500.0,0.00015,30]
[408146273,1773174632414,-500.0,0.00015,30]
[408146274,1773174632425,-606.83,0.0001512,2]
[408146275,1773174632436,-161.37131775,0.00015157,2]
[408146276,1773174632446,-153.15462612,0.0001521,2]
[408146277,1773174632456,-915.98,0.00015241,2]
[408146278,1773174632466,-166.66,0.00015251,2]
[408146279,1773174632476,-1123.12,0.00015274,2]
[408146280,1773174632485,-500.0,0.00015373,2]
[408146281,1773174632495,-1123.12,0.00015548,2]
[408146282,1773174632504,-1680.0,0.00015573,2]
[408146283,1773174632514,-250.0,0.00015574,2]
[408146284,1773174632532,-5000.0,0.00015574,2]
[408146285,1773174632545,-250.0,0.00015574,2]
[408146286,1773174632556,-600.0,0.00015574,2]
[408146287,1773174632565,-255.0,0.0001562,2]
[408146288,1773174632577,-166.66,0.00015709,2]
[408146289,1773174632587,-1123.12,0.00015822,2]
[408146290,1773174632597,-915.98,0.00016003,2]
[408146291,1773174632607,-1123.12,0.00016096,2]
[408146292,1773174632617,-606.83,0.00016115,2]
[408146293,1773174632627,-166.66,0.00016167,2]
[408146294,1773174632637,-1095.49569653,0.00016337,5]
[408146295,1773174632648,-1095.49569653,0.00016337,5]
[408146296,1773174632658,-1095.49569653,0.00016337,5]
[408146297,1773174632668,-500.0,0.00016337,2]
[408146298,1773174632679,-500.0,0.00016337,2]
[408146299,1773174632689,-500.0,0.00016337,2]
[408146300,1773174632701,-203.0,0.00016337,2]
[408146301,1773174632711,-236.84691589,0.00016337,2]
[408146302,1773174632722,-500.0,0.00016337,2]
[408146303,1773174632733,-458.32903344,0.00016337,2]
[408146304,1773174632744,-500.0,0.00016337,2]
[408146305,1773174632756,-377.73502036,0.00016337,2]
[408146306,1773174632766,-500.0,0.00016337,2]
[408146307,1773174632777,-500.0,0.00016337,2]
[408146308,1773174632788,-237.5261536,0.00016337,2]
[408146309,1773174632799,-511.46805139,0.00016337,2]
[408146310,1773174632810,-2684.55309075,0.00016338,2]
[408146311,1773174632825,-1254.41808677,0.00016338,2]
[408146312,1773174632837,-583.896,0.00016338,2]
[408146313,1773174637965,-217.44279054,0.00016328,2]
[408146314,1773174637979,-500.0,0.00016335,2]
[408146315,1773174637994,-500.0,0.00016335,2]
[408146316,1773174638006,-557.63677509,0.00016335,2]
[408146318,1773174638018,-500.0,0.00016335,2]
[408146319,1773174638032,-500.0,0.00016335,2]
[408146320,1773174638044,-500.0,0.00016335,2]
[408146321,1773174638056,-500.0,0.00016335,2]
[408146322,1773174638068,-500.0,0.00016335,2]
[408146323,1773174638080,-500.0,0.00016335,2]
[408146324,1773174638091,-500.0,0.00016335,2]
[408146325,1773174638103,-205.83884981,0.00016335,2]
[408146326,1773174638115,-500.0,0.00016335,2]
[408146327,1773174638126,-500.0,0.00016335,2]
[408146328,1773174638138,-500.0,0.00016335,2]
[408146329,1773174638149,-500.0,0.00016335,2]
[408146330,1773174638161,-500.0,0.00016335,2]
[408146331,1773174638172,-163.84777546,0.00016335,2]
[408146332,1773174638183,-500.0,0.00016335,2]
[408146333,1773174638194,-204.70425943,0.00016335,2]
[408146334,1773174638206,-500.0,0.00016335,2]
[408146335,1773174638217,-500.0,0.00016335,2]
[408146336,1773174638229,-500.0,0.00016335,2]
[408146337,1773174638241,-500.0,0.00016335,2]
[408146338,1773174638253,-500.0,0.00016335,2]
[408146339,1773174638265,-500.0,0.00016335,2]
[408146340,1773174638276,-500.0,0.00016335,2]
[408146341,1773174638287,-500.0,0.00016335,2]
[408146342,1773174638299,-500.0,0.00016335,2]
[408146343,1773174638311,-500.0,0.00016335,2]
[408146344,1773174638323,-500.0,0.00016335,2]
[408146345,1773174638335,-500.0,0.00016335,2]
[408146346,1773174638346,-500.0,0.00016335,2]
[408146347,1773174638359,-500.0,0.00016335,2]
[408146348,1773174638371,-500.0,0.00016335,2]
[408146349,1773174638383,-500.0,0.00016335,2]
[408146350,1773174638395,-500.0,0.00016335,2]
[408146351,1773174638406,-500.0,0.00016335,2]
[408146352,1773174638417,-500.0,0.00016335,2]
[408146353,1773174638428,-500.0,0.00016335,2]
[408146354,1773174638439,-500.0,0.00016335,2]
[408146355,1773174638450,-500.0,0.00016335,2]
[408146356,1773174638461,-500.0,0.00016335,2]
[408146357,1773174638472,-500.0,0.00016335,2]
[408146358,1773174638483,-500.0,0.00016335,2]
[408146359,1773174638494,-500.0,0.00016335,2]
[408146360,1773174638508,-500.0,0.00016335,2]
[408146361,1773174638519,-500.0,0.00016335,2]
[408146362,1773174638530,-500.0,0.00016335,2]
[408146363,1773174638542,-500.0,0.00016335,2]
[408146364,1773174638555,-500.0,0.00016335,2]
[408146365,1773174638565,-500.0,0.00016335,2]
[408146366,1773174638576,-500.0,0.00016335,2]
[408146367,1773174638588,-2495477.13282248,0.00016338,2]
[408146368,1773174638599,-1123.12,0.0001637,2]
[408146369,1773174638611,-500.0,0.00016373,2]
[408146370,1773174638622,-202.88923796,0.00016373,2]
[408146371,1773174638634,-500.0,0.00016373,2]
[408146372,1773174638645,-500.0,0.00016373,2]
[408146373,1773174638656,-500.0,0.00016373,2]
[408146374,1773174638667,-500.0,0.00016373,2]
[408146375,1773174638678,-500.0,0.00016373,2]
[408146376,1773174638689,-400.53,0.00016438,2]
[408146377,1773174638700,-1123.12,0.00016644,2]
[408146378,1773174638711,-915.98,0.00016765,2]
[408146379,1773174638722,-246.0,0.00016824,2]
[408146380,1773174638733,-1123.12,0.00016918,2]
[408146381,1773174638744,-164.11826784,0.00016921,2]
[408146382,1773174638755,-1000.0,0.00016921,2]
[408146383,1773174638766,-945.92650306,0.00016921,2]
[408146384,1773174638777,-1000.0,0.00016921,2]
[408146385,1773174638788,-606.83,0.00016999,2]
[408146386,1773174638799,-606.83,0.00016999,2]
[408146387,1773174638810,-606.83,0.00016999,2]
[408146388,1773174638821,-606.83,0.00016999,2]
[408146389,1773174638832,-606.83,0.00016999,2]
[408146390,1773174638843,-606.89,0.00016999,2]
[408146391,1773174638855,-510.0,0.00017,2]
[408146392,1773174638866,-2351.0,0.0001713,2]
[408146393,1773174638876,-1123.12,0.00017192,2]
[408146394,1773174638887,-1123.12,0.00017466,2]
[408146395,1773174638898,-1500.0,0.00017468,2]
[408146396,1773174638909,-915.98,0.00017527,2]
[408146397,1773174638920,-1123.12,0.0001774,2]
[408146398,1773174638932,-400.53,0.0001788,2]
[408146399,1773174638943,-701.48829943,0.00018,2]
[408146400,1773174638954,-151.0,0.00018,2]
[408146401,1773174638964,-300.0,0.00018,2]
[408146402,1773174638976,-151.0,0.00018,2]
[408146403,1773174638990,-151.0,0.00018,2]
[408146404,1773174639001,-1123.13410102,0.00018014,2]
[408146405,1773174639011,-500.0,0.00018016,2]
[408146406,1773174639023,-915.98,0.00018289,2]
[408146407,1773174639034,-510.0,0.00018432,3]
[408146408,1773174639045,-250.0,0.00018707,2]
[408146409,1773174639057,-496.31,0.0001884,2]
[408146410,1773174639068,-160.0,0.00018843,2]
[408146411,1773174639078,-172.91703981,0.00018843,2]
[408146412,1773174639089,-3292.0,0.00018843,2]
[408146413,1773174639100,-1428.38747117,0.00018999,2]
[408146414,1773174639111,-500.0,0.00018999,2]
[408146415,1773174639123,-1500.0,0.00018999,2]
[408146416,1773174639135,-1008.65267046,0.00018999,2]
[408146417,1773174639147,-184.98336144,0.00018999,2]
[408146418,1773174639157,-151.0,0.00018999,2]
[408146419,1773174639171,-500.0,0.00018999,2]
[408146420,1773174639182,-263.03544778,0.00018999,2]
[408146421,1773174639195,-500.0,0.00019,5]
[408146422,1773174639208,-13667.64153885,0.00019,2]
[408146423,1773174639219,-350.0,0.00019007,2]
[408146424,1773174639231,-500.0,0.00019054,2]
[408146425,1773174639242,-151.0,0.00019054,2]
[408146426,1773174639254,-194.33339666,0.00019078,2]
[408146427,1773174639265,-500.0,0.00019109,2]
[408146428,1773174639277,-289.93018281,0.00019109,2]
[408146429,1773174639287,-500.0,0.00019164,2]
[408146430,1773174639297,-350.0,0.00019173,2]
[408146431,1773174639309,-2461.0,0.00019174,2]
[408146432,1773174639320,-3504.0,0.00019174,2]
[408146433,1773174639331,-3000.0,0.00019178,2]
[408146434,1773174639343,-3000.0,0.00019178,2]
[408146435,1773174639354,-3000.0,0.00019178,2]
[408146436,1773174639365,-3000.0,0.00019178,2]
[408146437,1773174639376,-3000.0,0.00019178,2]
[408146438,1773174639390,-3000.0,0.00019178,2]
[408146439,1773174639402,-3000.0,0.00019178,2]
[408146440,1773174639414,-3000.0,0.00019178,2]
[408146441,1773174639425,-3000.0,0.00019178,2]
[408146442,1773174639437,-3000.0,0.00019178,2]
[408146443,1773174639449,-3000.0,0.00019178,2]
[408146444,1773174639460,-787.0,0.00019178,2]
[408146445,1773174639470,-2000.0,0.000192,2]
[408146446,1773174639481,-500.0,0.00019212,2]
[408146447,1773174639493,-500.0,0.00019212,2]
[408146448,1773174639504,-500.0,0.00019212,2]
[408146449,1773174639515,-500.0,0.00019212,2]
[408146450,1773174639527,-150.81923528,0.00019212,2]
[408146451,1773174639538,-150.36304931,0.00019212,2]
[408146452,1773174639549,-152.81580585,0.00019212,2]
[408146453,1773174639560,-500.0,0.00019212,2]
[408146454,1773174639571,-500.0,0.00019219,2]
[408146455,1773174639582,-496.31,0.00019221,2]
[408146456,1773174639593,-500.0,0.00019233,7]
[408146457,1773174639604,-500.0,0.00019267,2]
[408146458,1773174639615,-500.0,0.00019267,2]
[408146459,1773174639626,-500.0,0.00019267,2]
[408146460,1773174639637,-500.0,0.00019267,2]
[408146461,1773174639649,-505.89870401,0.00019267,2]
[408146462,1773174639659,-500.0,0.00019274,2]
[408146463,1773174639671,-1000.0,0.00019274,2]
[408146464,1773174639682,-350.0,0.00019309,2]
[408146465,1773174639693,-500.0,0.00019322,2]
[408146466,1773174639705,-500.0,0.00019322,2]
[408146467,1773174639716,-500.0,0.00019322,2]
[408146468,1773174639727,-500.0,0.00019322,2]
[408146469,1773174639738,-400.53,0.00019322,2]
[408146470,1773174639749,-500.0,0.00019329,2]
[408146471,1773174639760,-631.75115983,0.00019376,2]
[408146472,1773174639771,-500.0,0.00019376,2]
[408146473,1773174639782,-544.737577,0.00019376,2]
[408146474,1773174639793,-762.22328141,0.00019382,2]
[408146475,1773174639804,-500.0,0.00019384,2]
[408146476,1773174639815,-2000.0,0.000194,2]
[408146477,1773174639826,-311.946409,0.00019431,2]
[408146478,1773174639837,-500.0,0.00019439,2]
[408146479,1773174640481,-3696.792,0.00019465,2]
[408146480,1773174640512,-172.089,0.00019465,2]
[408146481,1773174640537,-350.0,0.00019475,3]
[408146482,1773174640560,-500.0,0.00019494,2]
[408146483,1773174640570,-500.0,0.00019507,7]
[408146484,1773174640580,-1000.0,0.00019548,2]
[408146485,1773174640590,-500.0,0.00019549,2]
[408146486,1773174640599,-168.0,0.00019589,2]
[408146487,1773174640609,-952.23523324,0.000196,2]
[408146488,1773174640618,-2000.0,0.000196,2]
[408146489,1773174640627,-496.33051683,0.00019602,2]
[408146490,1773174640636,-500.0,0.00019604,2]
[408146491,1773174640645,-153.36839608,0.00019609,2]
[408146492,1773174640655,-222.52962526,0.00019621,3]
[408146493,1773174640664,-400.01,0.00019624,2]
[408146494,1773174640673,-280.9122375,0.00019625,2]
[408146495,1773174640683,-250.0,0.00019642,2]
[408146496,1773174640692,-500.0,0.00019659,2]
[408146497,1773174640701,-250.0,0.00019671,2]
[408146498,1773174640710,-1977.67132423,0.000197,2]